Cogmind - Beta 15 @@@ ROGUE MODE // 2025.05.22 @ 21:17:58 Player: aloola Result: Destroyed by as-80633 with Assembled Rifle Performance ------------- Evolutions (0) 0 Regions Visited (2) 400 Robots Destroyed (20) 100 Value Destroyed (242) 242 Prototype IDs (0) 0 Alien Tech Used (0) 0 Bonus (0) 0 TOTAL SCORE: 742 Bonus ------- None Cogmind --------- Core Integrity 0/250 Matter 300/300 Energy 99/100 System Corruption 0% Temperature Cool (0) Movement Core (50) Location -10/Mines Parts ------- > --- POWER (1) -------- (None) > --- PROPULSION (2) --- (None) > --- UTILITY (2) ------ (None) > --- WEAPON (2) ------- (None) > --- INVENTORY (5) ---- Improved Terrain Scanner Seismic Detector Propulsion Shielding Medium Laser Hammer Peak State ------------ > --- POWER ------------ Ion Engine > --- PROPULSION ------- Light Treads Light Treads > --- UTILITY ---------- Large Storage Unit Seismic Detector > --- WEAPON ----------- Light Assault Rifle Light Assault Rifle > --- INVENTORY -------- Ion Engine Compact Wheel Small Storage Unit Improved Terrain Scanner Seismic Detector Targeting Computer Small Laser Mining Laser [Rating: 8] Favorites ----------- Power Ion Engine Engine Ion Engine Propulsion Light Treads Treads Light Treads Utility Seismic Detector Device Seismic Detector Storage Large Storage Unit Weapon Light Assault Rifle Ballistic Gun Light Assault Rifle Launcher Grenade Launcher Build | -11 -10 -10 ------- Run | Yrd Mat Min Slots Evolved . | . . . Power . | . . . Propulsion . | . . . Utility . | . . . Weapon . | . . . Parts Attached 12 | 7 1 4 Power 2 | 1 . 1 Engine 2 | 1 . 1 Core . | . . . Reactor . | . . . Propulsion 4 | 2 . 2 Treads 4 | 2 . 2 Leg . | . . . Wheel . | . . . Hover . | . . . Flight . | . . . Utility 3 | 2 1 . Device 1 | 1 . . Storage 2 | 1 1 . Processor . | . . . Hackware . | . . . Protection . | . . . Artifact . | . . . Weapon 3 | 2 . 1 Energy Gun . | . . . Energy Cannon . | . . . Ballistic Gun 2 | 2 . . Ballistic Cannon . | . . . Launcher 1 | . . 1 Special Weapon . | . . . Impact Weapon . | . . . Slashing Weapon . | . . . Piercing Weapon . | . . . Special Melee Weapon . | . . . Unidentified Prototypes . | . . . Parts Lost 6 | . . 6 Power 1 | . . 1 Propulsion 2 | . . 2 Utility 1 | . . 1 Weapon 2 | . . 2 Highest Loss Streak 3 | . . 3 To Critical Strikes . | . . . Average Backups 10 | 5 11 13 Power . | . 1 . Propulsion 1 | 2 1 2 Utility 3 | 1 4 5 Weapon 4 | 1 4 5 Tool/Special . | . . . Unused Backups 15 | 5 . 10 Power . | . . . Propulsion 3 | 2 . 1 Utility 6 | 2 . 4 Weapon 6 | 1 . 5 Tool/Special . | . . . Average Slot Usage (%) 97 | . 99 88 Engine 13 | . 14 9 Treads 27 | . 28 24 Device 13 | . 13 13 Storage 13 | . 14 13 Ballistic Gun 26 | . 28 19 Launcher 1 | . . 6 Peak Build Rating 8 | 7 8 8 Average Rating 7 | 5 7 7 On Entrance 5 | . 7 8 Naked Turns 1 | . . 1 Heaviest Build 30 | 13 28 30 Greatest Support 40 | 40 40 40 Greatest Overweight (x) . | . . . Average Overweight (x) . | . . . Largest Inventory Capacity 15 | 8 15 15 Average Capacity 12 | 7 13 14 Most Carried 15 | 8 15 15 Average Carried 10 | 5 11 13 Final Capacity 15 | 8 15 5 Final Carried 15 | 6 15 5 Class Distribution -------------------- 100% | Mutant Dominant Class ---------------- Mutant | -10/Materials Mutant | -10/Mines Resources | -11 -10 -10 ----------- Run | Yrd Mat Min Matter Collected 493 | 311 89 93 Remotely . | . . . Salvage Created 535 | 201 304 30 Parts 49 | 21 28 . Haulers Intercepted 1 | . 1 . Recyclers Shooed . | . . . Parts Field Recycled . | . . . Retrieved Matter . | . . . Parts Self-Destructed . | . . . Prevented . | . . . Kills | -11 -10 -10 ------- Run | Yrd Mat Min Combat Hostiles Destroyed 15 | . 10 5 Guns 14 | . 10 4 AOE 1 | . . 1 Classes Destroyed 7 | 3 3 1 Worker 3 | 2 1 . Tunneler 5 | 5 . . Hauler 1 | . 1 . Recycler 1 | 1 . . Swarmer 6 | . 6 . Grunt 4 | . 4 . Assembled 5 | . . 5 Best Kill Streak 4 | 2 3 4 Combat Bots Only 4 | . 3 4 Max Kills in Single Turn 2 | 1 2 1 Gunslinging 1 | . 1 . Exploded 1 | . . 1 Melee . | . . . Uniques/NPCs Destroyed . | . . . Combat | -11 -10 -10 -------- Run | Yrd Mat Min Hostile Shots Fired 100 | . 40 60 Missed 31 | . 10 21 Hits 69 | . 30 39 Melee 3 | . . 3 Projectile 66 | . 30 36 AOE 5 | . . 5 Critical Strikes 1 | . . 1 Damage Taken 1071 | . 252 819 Core 257 | . 90 167 Absorbed by Shields . | . . . Core Remaining (%) 100 | 100 . . Volleys Fired 70 | 23 33 14 Largest 2 | 2 2 2 Hottest 50 | 40 40 50 Shots Fired 134 | 46 66 22 Gun 130 | 46 66 18 Cannon . | . . . Launcher 4 | . . 4 Special . | . . . Kinetic 130 | 46 66 18 Thermal . | . . . Explosive 4 | . . 4 Electromagnetic . | . . . Robot Hit Streak 9 | 9 9 8 Robot Miss Streak 4 | 4 2 3 Penetration Max . | . . . Secondary Targets 2 | . 2 . Max Gunslinging Chain 1 | . 1 . Shots Hit Robots 90 | 29 47 14 Core Hits 43 | 14 20 9 Critical Kills . | . . . Critical Parts Destroyed . | . . . Critical Strikes . | . . . Melee Attacks . | . . . Impact . | . . . Slashing . | . . . Piercing . | . . . Sneak Attacks . | . . . Combat Hostiles . | . . . Follow-up Attacks . | . . . Damage Inflicted 838 | 227 371 240 Guns 702 | 227 366 109 Cannons . | . . . Explosions 131 | . . 131 Melee . | . . . Ramming 5 | . 5 . Kinetic 702 | 227 366 109 Thermal . | . . . Explosive 131 | . . 131 Electromagnetic . | . . . Impact . | . . . Slashing . | . . . Piercing . | . . . Highest Corruption . | . . . Average Corruption . | . . . Corruption Purged . | . . . Corruption Blocked . | . . . Overload Shots . | . . . Overflow Damage 7 | . . 7 Projectiles . | . . . Explosions 7 | . . 7 Melee . | . . . Knockbacks . | . . . Impact . | . . . Kinetic . | . . . Secondary . | . . . Self-Inflicted Damage 36 | . . 36 Shots 2 | . . 2 Rammed 1 | . 1 . Targets Rammed 2 | . 2 . Kicked . | . . . Crushed 1 | . 1 . Highest Temperature 6 | . 6 . Average Temperature 6 | . 6 . Received Heat Transfer 36 | . 36 . Siege Activations . | . . . Martial Activations . | . . . Shielding Activations . | . . . Robots Disrupted . | . . . Combat Hostiles . | . . . Robots Corrupted . | . . . Combat Hostiles . | . . . Parts Fried . | . . . Impact Corruptions . | . . . Robots Melted . | . . . Combat Hostiles . | . . . Parts Melted . | . . . Heat Transferred . | . . . Parts Sabotaged . | . . . Parts Stolen . | . . . Parts Stripped . | . . . Power Chain Reactions . | . . . Alert | -11 -10 -10 ------- Run | Yrd Mat Min Maximum Alert Level . | . . . Low Security (%) 100 | 100 100 100 Level 1 . | . . . Level 2 . | . . . Level 3 . | . . . Level 4 . | . . . Level 5 . | . . . High Security . | . . . Max Security . | . . . Peak Influence 70 | 5 70 12 Initial . | . . . Average 11 | 1 16 . Influence Increases 343 | 40 288 15 Destroy 0b10 Robot/C 200 | . 200 . Destroy 0b10 Robot/NC 50 | 40 10 . Destroy Leader 42 | . 42 . Successful Hack 21 | . 21 . Destroy Structure 15 | . . 15 Lose Combat Pursuer 15 | . 15 . Influence Decreases 343 | 40 288 15 Time Decay 338 | 40 288 10 Lost Part 5 | . . 5 Squads Dispatched 2 | . 2 . Investigation 1 | . 1 . Extermination . | . . . Reinforcement 1 | . 1 . Assault . | . . . Garrison . | . . . Intercept . | . . . Searches Triggered . | . . . Construction Impeded . | . . . Haulers Reinforced . | . . . Active Scanning Responses . | . . . Cargo Convoy Interrupts . | . . . Stealth | -11 -10 -10 --------- Run | Yrd Mat Min Distress Signals 1 | . 1 . Communications Jammed . | . . . Distress Signals . | . . . Times Spotted 41 | . 18 23 Peak Tracking Total 11 | . 5 11 Tactical Retreats 2 | . 1 1 Traps | -11 -10 -10 ------- Run | Yrd Mat Min Traps Triggered 1 | . 1 . Indirectly . | . . . Trap Hack Attempts . | . . . Triggered . | . . . Disarmed . | . . . Reprogrammed . | . . . Reused . | . . . Traps Extracted . | . . . Installed . | . . . Triggered . | . . . Machines | -11 -10 -10 ---------- Run | Yrd Mat Min Machines Disabled . | . . . Max in Single Turn . | . . . Machines Repaired . | . . . Machines Dismantled . | . . . Machines Sabotaged . | . . . Overloaded Fab Kills . | . . . Hacking | -11 -10 -10 --------- Run | Yrd Mat Min Machines Accessed 9 | . 9 . Terminals 7 | . 7 . Fabricators . | . . . Repair Stations . | . . . Recycling Units 2 | . 2 . Scanalyzers . | . . . Garrison Access . | . . . Total Hacks 21 | . 21 . Successful 9 | . 9 . Failed 12 | . 12 . Catastrophic 3 | . 3 . Database Lockouts . | . . . Manual 17 | . 17 . Terminals 18 | . 18 . Fabricators . | . . . Repair Stations . | . . . Recycling Units 3 | . 3 . Scanalyzers . | . . . Garrison Access . | . . . Terminal Hacks 5 | . 5 . Robot Analysis 3 | . 3 . Branch Access Points 1 | . 1 . Terminal Index 1 | . 1 . Fabricator Hacks . | . . . Repair Station Hacks . | . . . Recycling Unit Hacks 1 | . 1 . Report Inventory 1 | . 1 . Scanalyzer . | . . . Garrison Access Hacks . | . . . Unauthorized Hacks 3 | . 3 . Terminals 2 | . 2 . Botnet 2 | . 2 . Fabricators . | . . . Repair Stations . | . . . Recycling Units 1 | . 1 . Recyclers 1 | . 1 . Scanalyzers . | . . . Garrison Access . | . . . Data Cores Recovered . | . . . Used . | . . . Hacking Detections 7 | . 7 . Full Trace Events 1 | . 1 . Feedback Events . | . . . Feedback Blocked . | . . . Robot Schematics Acquired . | . . . Robots Built . | . . . Authchips . | . . . Time . | . . . Total Robot Build Rating . | . . . Part Schematics Acquired . | . . . Parts Built . | . . . Authchips . | . . . Time . | . . . Total Part Build Rating . | . . . Parts Repaired . | . . . Time . | . . . Parts Recycled . | . . . Recycled Matter . | . . . Retrieved Matter . | . . . Retrieved Components . | . . . Parts Scanalyzed . | . . . Part Schematics Acquired . | . . . Parts Damaged . | . . . Bothacking | -11 -10 -10 ------------ Run | Yrd Mat Min Used RIF Installer . | . . . Robots Hacked . | . . . Non-combat . | . . . Combat . | . . . Robot Hacks Applied . | . . . Relay Couplers Released . | . . . Fabnet Peak Effective % . | . . . Robots Rewired . | . . . Allies Hacked . | . . . Hacks Repelled . | . . . Allies | -11 -10 -10 -------- Run | Yrd Mat Min Total Allies 3 | . . 3 Largest Group 3 | . . 3 Highest-Rated Group 40 | . . 40 Highest-Rated Ally 16 | . . 16 Total Orders . | . . . Ally Attacks 19 | . . 19 Total Damage 225 | . . 225 Kills 3 | . . 3 Allies Corrupted . | . . . Allies Melted . | . . . Intel | -11 -10 -10 ------- Run | Yrd Mat Min Active Infowar (turns) 1405 | 14 1139 252 Seismic 1405 | 14 1139 252 Robot Analysis Total 3 | . 3 . Derelict Logs Recovered . | . . . Drone Launches . | . . . Drone Recoveries . | . . . Exploration | -11 -10 -10 ------------- Run | Yrd Mat Min Turns Passed 1689 | 274 1155 260 Spaces Moved 861 | 112 616 133 Core 6 | 4 . 2 Treads 855 | 108 616 131 Legs . | . . . Wheels . | . . . Hover . | . . . Flight . | . . . Fastest Speed 50 | 50 160 50 Average Speed 159 | 156 160 158 Slowest Speed 160 | 160 160 160 Overloaded Moves . | . . . Propulsion Burnouts . | . . . Robots Hopped . | . . . Potential Cave-ins . | . . . Cave-ins Triggered . | . . . Exploration Rate (%) 44 | 8 88 38 Regions Visited 2 Branch Regions 1 Pre-discovered Areas . | . . . Known Exits Taken 1 | . 1 . Unknown Exits Taken 1 | 1 . . Scrap Searched . | . . . Spaces Dug . | . . . Terrain Destroyed 24 | . . 24 Melee . | . . . Projectile . | . . . AOE 24 | . . 24 Terrain Rammed . | . . . Walls Destroyed . | . . . Machines Disabled . | . . . Actions | -11 -10 -10 --------- Run | Yrd Mat Min Total 1070 | 175 732 163 Wait 99 | 17 71 11 Move 859 | 111 615 133 Hop . | . . . Pick Up 20 | 12 8 . Fast Attach 6 | 6 . . Attach 6 | 1 1 4 Detach 1 | . 1 . Swap 2 | . 1 1 Drop 5 | 5 . . Fire 70 | 23 33 14 Melee . | . . . Ram . | . . . Kick . | . . . Crush 2 | . 2 . Escape Stasis . | . . . Rewire . | . . . Trap . | . . . Miscellaneous . | . . . Route ------- -11/Scrapyard -10/Materials (discovered 4 exits: [*Mat x3] / *Min) -10/Mines History --------- Turn | Location | Event 37 | -11/Scrapyard | Discovered new exit (range 16) 275 | -11/Scrapyard | Entered Materials 276 | -10/Materials | Met a group of wandering Federalists 301 | -10/Materials | Build established: Mutant 547 | -10/Materials | Discovered new exit (range 5) 618 | -10/Materials | Discovered new exit (range 16) 1302 | -10/Materials | Discovered new exit (range 9) 1305 | -10/Materials | Identified exit to Mines 1351 | -10/Materials | Discovered new exit (range 14) 1430 | -10/Materials | Entered Mines 1434 | -10/Mines | Assisted by bots powering up and referring to "LRC-V3" 1492 | -10/Mines | Assembled infested the area 1573 | -10/Mines | Lost 3 allies 1604 | -10/Mines | Core integrity fell below 50% 1641 | -10/Mines | Lost 3 parts (2n1w) 1687 | -10/Mines | Core integrity fell below 20% 1689 | -10/Mines | Released all parts (5) 1690 | -10/Mines | Destroyed by as-80633 with Assembled Rifle Last Messages --------------- 01648_ K-01 Serf collects debris. 01649_ U-05 Engineer lays Concrete. 01651_ Acquired 66 matter. 01651_ U-05 Engineer builds a Wall. 01652_ K-01 Serf collects debris. 01655_ U-05 Engineer lays Concrete. 01655_ K-01 Serf collects debris. 01656_ U-05 Engineer lays Concrete. 01657_ as-21559 sneak attacks. 01658_ U-05 Engineer builds a Wall. 01659_ U-05 Engineer destroyed. 01659_ K-01 Serf destroyed. 01662_ Lgt. Assault Rifle destroyed. 01665_ U-05 Engineer destroyed. 01667_ R-06 Scavenger destroyed. 01682_ Seismic Detector destroyed. 01689_ Released Lgt. Treads. 01689_ Released Ion Engine. 01689_ Released Lrg. Storage Unit. 01689_ Released Lgt. Assault Rifle. Map ----- +----------------------------------------------------+ | ? ? ??# | ### | | ?? ### ## ####### ##?# | | ???# ## # ###### ##?????## ## #??# | | ???# # # ###????#%##???????##### #### | | ???#### # ##????# #????????????# | | ???# # # # ##???# #????????????####### | | ???## # ##??# #??????????????????# | | ????# ##?# #??????????????????###### | | ????### #?# ###########?????????????? | | ??????# ##% #?# # """ """ ????????????? | | ?????# # # ### # """ """ #???????????? | | ??????# # = ## """ """ #???????????? | | ??????# # %%! # #### #???????????? | | ??????# #%=*%= # #??# #???????????? | | ??????###**%! ## ##??# #???????????? | | ???????#!!==!###### ##???#############???????????? | | ???????#= ###????###????????????????????????????? | | ???????#%=##?????????????????????????????????????? | | ???????#* #????????####??????????????????????????? | | ??????##!!#???????## ##?????????????????????????? | | ?????## %##??????# ###???????????????????????? | | ?????# ##?????# ##??????????????????????? | | ?????# ##???## #??????????????????????? | | ?????## ##??# #??????????????????????? | | ??????#### #??# !*[ ##?????????????????????? | | ?????????## #### =a!@ ##????????????????????? | | ?????????## ## |]= #????????????????? | | ?????????# a [ #????????????????? | | ?????????# aa #???????????????? | | ?????????## #??????????????? | | ??????????## ### $?????????????? | | ???????????######?##### k ???????????? | | ??????????????????????# #### ####t??????????? | | ??????????????????????# ##??? ###??????????????? | | ??????????????????????# #????? #????????????????? | | ??????????????????????# #????? ????????????????? | | ??????????????????????# #?????? #???????????????? | | ??????????????????????# #???????#???????????????? | | ??????????????????????# #???????????????????????? | | ?????????????????????? #???????????????????????? | | ??????????????????????? ????????????????????????? | | ?????????????????????????????????????????????????? | | ?????????????????????????????????????????????????? | | ?????????????????????????????????????????????????? | | ?????????????????????????????????????????????????? | | ?????????????????????????????????????????????????? | | ?????????????????????????????????????????????????? | | ?????????????????????????????????????????????????? | | ?????????????????????????????????????????????????? | | ?????????????????????????????????????????????????? | +----------------------------------------------------+ Best States ------------- Heat Dissipation 25 Energy Generation 10 Energy Capacity 250 Matter Stores 300 Matter Capacity 300 Sight Range 16 Terrain Scan Density 10 Evasion (%) 50 Recoil Reduction 2 Item Schematics ----------------- None Robot Schematics ------------------ None Fabricated ------------ Nothing Repaired ---------- Nothing Alien Tech Used ----------------- None Achievements -------------- None Challenges ------------ None Game ------ Seed ComponentBraceCore Manual? 0 Play Time 00:16:26 Cumulative 83.1 hours Start 2025.05.22 @ 21:02:49 End 2025.05.22 @ 21:17:58 Sessions 1 Manual Loads 0 Difficulty Rogue Special Mode None Game No. 40 Rogue 40 Adventurer 0 Explorer 0 Win Type - Total 4 Types 4/0/0/0/0/0/0/0/0/0 Lore% 57 Gallery% 48 Achievement% 37 Wizard Run 0 Options --------- Layout 0 ASCII 0 Keyboard 1 Movement Numpad Keybinds 0 Fullscreen 1 Font 18/Cog Map View 76x50 Zoom Use 0% Tactical HUD 1 Map Filters NONE Filters NONE Steam 1 RUN: f6eabb2f-050c-4f09-a66a-7f0bcb7ce59b